bitfinex/quotes_BTCUSD_20250907
["timestamp","ask_amount","ask_price","bid_price","bid_amount"]
[1757229557220,0.20810438,110630.0,110620.0,0.24499599]
[1757229558342,0.20810438,110630.0,110620.0,0.24699599]
[1757229558756,0.20810438,110630.0,110620.0,0.24999599]
[1757229559369,0.20810438,110630.0,110620.0,0.24799599]
[1757229559782,0.20810438,110630.0,110620.0,0.25111599]
[1757229559990,0.20810438,110630.0,110620.0,0.24811599]
[1757229560206,0.0273216,110630.0,110620.0,0.24811599]
[1757229560459,0.69812438,110630.0,110620.0,0.002]
[1757229560674,0.76760438,110630.0,110620.0,0.002]
[1757229561559,0.85952037,110630.0,110620.0,0.002]
[1757229561770,0.85952037,110630.0,110620.0,0.001]
[1757229562207,0.70960037,110630.0,110620.0,0.001]
[1757229562467,0.18079913,110620.0,110610.0,0.00046681]
[1757229562886,0.18105913,110620.0,110610.0,0.00046681]
[1757229563826,0.18205913,110620.0,110610.0,0.00046681]
[1757229564056,0.18669913,110620.0,110610.0,0.00046681]
[1757229565331,0.33673913,110620.0,110610.0,0.00046681]
[1757229567243,0.33677913,110620.0,110610.0,0.00046681]
[1757229568971,0.18669913,110620.0,110610.0,0.00046681]
[1757229569210,0.33677913,110620.0,110610.0,0.00046681]
[1757229569401,0.33667913,110620.0,110610.0,0.00046681]
[1757229571301,0.33677913,110620.0,110610.0,0.00046681]
[1757229573418,0.33667913,110620.0,110610.0,0.00046681]
[1757229574027,0.18659913,110620.0,110610.0,0.00046681]
[1757229574279,0.33675913,110620.0,110610.0,0.00046681]
[1757229574720,0.18659913,110620.0,110610.0,0.00046681]
[1757229574925,0.18643913,110620.0,110610.0,0.32369576]
[1757229575129,0.33659913,110620.0,110610.0,0.32369576]
[1757229575539,0.33659913,110620.0,110610.0,0.00582681]
[1757229575755,0.33675913,110620.0,110610.0,0.00582681]
[1757229581716,0.15596,110620.0,110610.0,0.00582681]
[1757229581912,0.33675913,110620.0,110610.0,0.00582681]
[1757229582893,0.33675913,110620.0,110610.0,0.00046681]
[1757229583120,0.33685913,110620.0,110610.0,0.00046681]
[1757229583330,0.33675913,110620.0,110610.0,0.00046681]
[1757229588999,0.29638579,110620.0,110610.0,0.00046681]
[1757229589408,0.32355337,110620.0,110610.0,0.00046681]
[1757229592375,0.11491109,110620.0,110610.0,0.00046681]
[1757229592581,0.29571022,110620.0,110610.0,0.00046681]
[1757229593796,0.29571022,110620.0,110610.0,0.00358681]
[1757229593999,0.29571022,110620.0,110610.0,0.00563681]
[1757229619303,0.35788671,110620.0,110610.0,0.00563681]
[1757229621297,0.35788671,110620.0,110610.0,0.00663681]
[1757229637724,0.54796671,110620.0,110610.0,0.00663681]
[1757229637929,0.67071913,110620.0,110610.0,0.00663681]
[1757229647469,0.67071913,110620.0,110610.0,0.27313681]
[1757229650143,0.67136082,110620.0,110610.0,0.27313681]
[1757229652722,0.67136082,110620.0,110610.0,0.00663681]
[1757229653553,0.67136082,110620.0,110610.0,0.27313681]
[1757229660621,0.67136082,110620.0,110610.0,0.29313681]
[1757229664408,0.52144082,110620.0,110610.0,0.29313681]
[1757229664616,0.18144082,110620.0,110610.0,0.9252946]
[1757229667250,0.18144082,110620.0,110610.0,1.0752146]
[1757229671586,0.18144082,110620.0,110610.0,1.07512059]
[1757229674876,0.18144082,110620.0,110610.0,1.07508059]
[1757229686802,0.34480305,110630.0,110610.0,1.07508059]
[1757229687003,0.46355098,110630.0,110620.0,0.00311]
[1757229687258,0.46355098,110630.0,110620.0,0.0051]
[1757229687459,0.64434872,110630.0,110620.0,0.0051]
[1757229688010,0.64534872,110630.0,110620.0,0.0051]
[1757229688447,0.64434872,110630.0,110620.0,0.0051]
[1757229688968,0.64434872,110630.0,110620.0,0.2716]
[1757229690187,0.64534872,110630.0,110620.0,0.2716]
[1757229698959,0.64534872,110630.0,110620.0,0.0051]
[1757229702697,0.64534872,110630.0,110620.0,0.00311]
[1757229702962,0.18079913,110620.0,110610.0,0.06175589]
[1757229703392,0.18079913,110620.0,110610.0,0.06469589]
[1757229705399,0.18079913,110620.0,110610.0,0.06569589]
[1757229705678,0.18079913,110620.0,110610.0,0.06770589]
[1757229706804,0.18079913,110620.0,110610.0,0.02641681]
[1757229707464,0.60536556,110630.0,110610.0,0.02641681]
[1757229707690,0.18079913,110620.0,110610.0,0.02641681]
[1757229708155,0.18079913,110620.0,110610.0,0.06663687]
[1757229708372,0.18079913,110620.0,110610.0,0.02641681]
[1757229709922,0.18079913,110620.0,110610.0,0.29291681]
[1757229710774,0.33067913,110620.0,110610.0,0.47373228]
[1757229711642,0.18079913,110620.0,110610.0,0.47373228]
[1757229711879,0.33067913,110620.0,110610.0,0.47373228]
[1757229712975,0.33067913,110620.0,110610.0,0.51495226]
[1757229713659,0.18079913,110620.0,110610.0,0.51495226]
[1757229713894,0.33067913,110620.0,110610.0,0.8329955]
[1757229714351,0.33067913,110620.0,110610.0,0.51495226]
[1757229714786,0.33067913,110620.0,110610.0,0.8329955]
[1757229715718,0.33067913,110620.0,110610.0,0.5664955]
[1757229716602,0.33067913,110620.0,110610.0,0.52527552]
[1757229717509,0.18079913,110620.0,110610.0,0.52527552]
[1757229720548,0.18079913,110620.0,110610.0,0.20723228]
[1757229720770,0.18079913,110620.0,110610.0,0.52527552]
[1757229722639,0.69784182,110630.0,110620.0,0.18079913]
[1757229722841,0.69784182,110630.0,110620.0,0.32299324]
[1757229725232,0.54796182,110630.0,110620.0,0.32299324]
[1757229725480,0.69884182,110630.0,110620.0,0.32399324]
[1757229725860,0.341,110630.0,110620.0,1.0646316]
[1757229726061,0.52078278,110630.0,110620.0,0.74658836]
[1757229726261,0.34,110630.0,110620.0,0.74658836]
[1757229726461,0.34,110630.0,110620.0,0.77374999]
[1757229729163,0.20792873,110640.0,110630.0,0.18078278]
[1757229729382,0.35780873,110640.0,110630.0,0.18382278]
[1757229729592,0.33064644,110640.0,110630.0,0.18382278]
[1757229729805,0.33064644,110640.0,110630.0,0.18591278]
[1757229730458,0.33164644,110640.0,110630.0,0.18591278]
[1757229730669,0.15088,110640.0,110630.0,0.18591278]
[1757229731091,0.33164644,110640.0,110630.0,0.21307362]
[1757229732764,0.1364289,110640.0,110630.0,0.21307362]
[1757229732999,0.31719534,110640.0,110630.0,0.21307362]
[1757229733119,0.18076644,110640.0,110630.0,0.30498961]
[1757229733351,0.33060644,110640.0,110630.0,0.30498961]
[1757229733591,0.33060644,110640.0,110630.0,0.57148961]
[1757229735082,0.18076644,110640.0,110630.0,0.57148961]
[1757229739136,0.36680316,110650.0,110630.0,0.57148961]
[1757229739341,0.70680316,110650.0,110640.0,0.00304]
[1757229739556,0.70680316,110650.0,110640.0,0.00513]
[1757229740397,0.70780316,110650.0,110640.0,0.00513]
[1757229741610,0.70680316,110650.0,110640.0,0.00513]
[1757229741818,0.70780316,110650.0,110640.0,0.00513]
[1757229745353,0.68064233,110650.0,110640.0,0.00513]
[1757229745554,0.001,110650.0,110640.0,0.18815602]
[1757229745800,0.001,110650.0,110640.0,0.79561974]
[1757229746153,0.18175011,110650.0,110640.0,0.67293628]
[1757229746368,0.18175011,110650.0,110640.0,0.50480897]
[1757229746564,0.18075011,110650.0,110640.0,0.50480897]
[1757229750053,0.18065972,110650.0,110640.0,0.50480897]
[1757229750269,0.18065972,110650.0,110640.0,0.35496897]
[1757229750467,0.18065972,110650.0,110640.0,0.50480897]
[1757229750620,0.18065972,110650.0,110640.0,0.54540417]
[1757229751262,0.18065972,110650.0,110640.0,0.39556417]
[1757229751465,0.18065972,110650.0,110640.0,0.54540417]
[1757229753696,0.18065972,110650.0,110640.0,0.21479773]
[1757229753907,0.18065972,110650.0,110640.0,0.54540417]
[1757229757359,0.18065972,110650.0,110640.0,0.81190417]
[1757229768983,0.71638092,110660.0,110640.0,0.81190417]
[1757229769197,0.18075011,110650.0,110640.0,0.80886417]
[1757229769804,0.18075011,110650.0,110640.0,0.81205417]
[1757229793720,0.18075011,110650.0,110640.0,1.12996859]
[1757229798050,0.18075011,110650.0,110640.0,1.12996859]
[1757229799611,0.18075011,110650.0,110640.0,0.81205417]
[1757229799814,0.18075011,110650.0,110640.0,1.12996859]
[1757229807467,0.18075011,110650.0,110640.0,1.13096859]
[1757229808073,0.1755776,110660.0,110640.0,1.13096859]
[1757229808295,0.6653776,110660.0,110650.0,0.1498]
[1757229808496,0.6653776,110660.0,110650.0,0.47286442]
[1757229808638,0.6653776,110660.0,110650.0,0.15495]
[1757229810252,0.5155776,110660.0,110650.0,0.15495]
[1757229815189,0.6653776,110660.0,110650.0,0.15495]
[1757229818772,0.6653776,110660.0,110650.0,0.00318]
[1757229818907,0.6653776,110660.0,110650.0,0.1498]
[1757229820703,0.18075011,110650.0,110640.0,1.12782859]
[1757229820915,0.18075011,110650.0,110640.0,1.12994859]
[1757229822212,0.18075011,110650.0,110640.0,1.13094859]
[1757229823881,0.18075011,110650.0,110640.0,0.66323417]
[1757229824124,0.18075011,110650.0,110640.0,1.13090859]
[1757229836504,0.64885236,110660.0,110640.0,1.13090859]
[1757229836737,0.64885236,110660.0,110650.0,0.15294]
[1757229839132,0.64893672,110660.0,110650.0,0.15294]
[1757229839886,0.64889672,110660.0,110650.0,0.15506]
[1757229843469,0.64889672,110660.0,110650.0,0.0053]
[1757229851133,0.64889672,110660.0,110650.0,0.03245653]
[1757229851433,0.67605325,110660.0,110650.0,0.03245653]
[1757229855886,0.64889672,110660.0,110650.0,0.03245653]
[1757229858996,8.436e-05,110660.0,110650.0,0.62528951]
[1757229859288,8.436e-05,110660.0,110650.0,0.62303014]
[1757229859707,8.436e-05,110660.0,110650.0,0.30512263]
[1757229860690,0.18081813,110660.0,110650.0,0.30712263]
[1757229861088,0.18081813,110660.0,110650.0,0.57362263]
[1757229862315,0.18081813,110660.0,110650.0,0.57462263]
[1757229870134,0.18054702,110660.0,110650.0,0.57462263]
[1757229873662,0.36684219,110670.0,110650.0,0.57462263]
[1757229874014,0.70684219,110670.0,110660.0,0.003]
[1757229875391,0.70684219,110670.0,110660.0,0.004]
[1757229879811,0.70684219,110670.0,110660.0,0.00601]
[1757229901157,0.70684219,110670.0,110660.0,0.004]
[1757229903809,0.4952983,110670.0,110660.0,0.03115461]
[1757229904030,0.67049236,110670.0,110660.0,0.03115461]
[1757229904678,0.67045236,110670.0,110660.0,0.03321461]
[1757229905555,0.67971241,110670.0,110660.0,0.03321461]
[1757229905986,0.33971241,110670.0,110660.0,0.03321461]
[1757229907509,0.18999241,110670.0,110660.0,0.21620755]
[1757229907726,0.33971241,110670.0,110660.0,0.21394838]
[1757229908393,0.13106455,110670.0,110660.0,0.21394838]
[1757229908611,0.18073236,110670.0,110660.0,0.21394838]
[1757229908847,0.33937069,110670.0,110660.0,0.21394838]
[1757229910371,0.18965069,110670.0,110660.0,0.21394838]
[1757229912031,0.18073236,110670.0,110660.0,0.21394838]
[1757229913407,0.18073236,110670.0,110660.0,0.03321461]
[1757229913602,0.18073236,110670.0,110660.0,0.03547378]
[1757229914199,0.18073236,110670.0,110660.0,0.21620755]
[1757229914398,0.18073236,110670.0,110660.0,0.48044838]
[1757229916812,0.18073236,110670.0,110660.0,0.29971461]
[1757229917759,0.18073236,110670.0,110660.0,0.27256]
[1757229920392,0.18073236,110670.0,110660.0,0.15578]
[1757229920620,0.18073236,110670.0,110660.0,0.15803917]
[1757229925409,0.52073236,110670.0,110660.0,0.15803917]
[1757229927760,0.52073236,110670.0,110660.0,0.15578]
[1757229929339,0.52073236,110670.0,110660.0,0.15803917]
[1757229944803,0.52073236,110670.0,110660.0,0.33877294]
[1757229945033,0.52073236,110670.0,110660.0,0.33651377]
[1757229947034,0.52073236,110670.0,110660.0,0.15578]
[1757229947240,0.52073236,110670.0,110660.0,0.15799917]
[1757229951904,0.52073236,110670.0,110660.0,0.33873294]
[1757229952124,0.52073236,110670.0,110660.0,0.33647377]
[1757229953534,0.52073236,110670.0,110660.0,0.15574]
[1757229953758,0.52073236,110670.0,110660.0,0.15799917]
[1757229954187,0.52073236,110670.0,110660.0,0.33873294]
[1757229954382,0.52073236,110670.0,110660.0,0.33647377]
[1757229955328,0.67041236,110670.0,110660.0,0.33647377]
[1757229955667,0.52073236,110670.0,110660.0,0.33647377]
[1757229956100,0.67041236,110670.0,110660.0,0.33647377]
[1757229956377,0.67041236,110670.0,110660.0,0.15574]
[1757229956588,0.67041236,110670.0,110660.0,0.33873294]
[1757229956798,0.67041236,110670.0,110660.0,0.33647377]
[1757229957200,0.67041236,110670.0,110660.0,0.15574]
[1757229957389,0.67041236,110670.0,110660.0,0.15799917]
[1757229971331,0.69756556,110670.0,110660.0,0.18515236]
[1757229971527,0.50165061,110670.0,110660.0,0.18289319]
[1757229971946,0.68238297,110670.0,110660.0,0.18289319]
[1757229976015,0.53270297,110670.0,110660.0,0.18289319]
[1757229978594,0.68238297,110670.0,110660.0,0.18289319]
[1757229980456,0.53270297,110670.0,110660.0,0.18289319]
[1757229981501,0.53270297,110670.0,110660.0,0.36362696]
[1757229983334,0.0271532,110670.0,110660.0,0.36362696]
[1757229983539,0.76848226,110680.0,110660.0,0.36362696]
[1757229983747,1.13568212,110680.0,110670.0,0.00316]
[1757229984777,1.13568212,110680.0,110670.0,0.0053]
[1757229985532,0.98600212,110680.0,110670.0,0.0063]
[1757229985844,1.13568212,110680.0,110670.0,0.00855896]
[1757229987154,1.13568212,110680.0,110670.0,0.0063]
[1757229987538,1.13568212,110680.0,110670.0,0.00855896]
[1757229987986,1.13568212,110680.0,110670.0,0.0063]
[1757230006518,1.13568212,110680.0,110670.0,0.18701744]
[1757230008485,0.98600212,110680.0,110670.0,0.18701744]
[1757230008650,1.13568212,110680.0,110670.0,0.18701744]
[1757230009070,0.98600212,110680.0,110670.0,0.18701744]
[1757230009411,1.13568212,110680.0,110670.0,0.18701744]
[1757230010599,1.13568212,110680.0,110670.0,0.0063]
[1757230015530,0.98600212,110680.0,110670.0,0.00416]
[1757230015739,1.13568212,110680.0,110670.0,0.00416]
[1757230029841,1.13568212,110680.0,110670.0,0.0062]
[1757230030930,0.98600212,110680.0,110670.0,0.00845896]
[1757230031127,1.13568212,110680.0,110670.0,0.00845896]
[1757230031356,0.98600212,110680.0,110670.0,0.1891764]
[1757230031573,0.78719986,110680.0,110670.0,0.18691744]
[1757230031791,0.76004667,110680.0,110670.0,0.18691744]
[1757230032285,0.76004667,110680.0,110670.0,0.21406778]
[1757230032724,0.76004667,110680.0,110670.0,0.35598377]
[1757230033493,0.76004667,110680.0,110670.0,0.39693359]
[1757230042754,0.42004667,110680.0,110670.0,0.71470251]
[1757230044792,0.02004667,110680.0,110670.0,0.78414251]
[1757230052989,0.02004667,110680.0,110670.0,0.93378251]
[1757230054191,0.02004667,110680.0,110670.0,0.88251359]
[1757230065458,0.20074779,110680.0,110670.0,0.55215615]
[1757230065668,0.20074779,110680.0,110670.0,0.81103359]
[1757230066440,0.20074779,110680.0,110670.0,0.81307359]
[1757230066867,0.28074779,110680.0,110670.0,0.81307359]
[1757230067475,0.28074779,110680.0,110670.0,0.47751615]
[1757230067725,0.28074779,110680.0,110670.0,0.60000581]
[1757230068106,0.3078971,110680.0,110670.0,0.60000581]
[1757230068309,0.28074779,110680.0,110670.0,0.60000581]
[1757230069438,0.28074779,110680.0,110670.0,0.60322581]
[1757230070879,0.28074779,110680.0,110670.0,0.60526581]
[1757230071473,0.28074779,110680.0,110670.0,0.60000581]
[1757230071675,0.28074779,110680.0,110670.0,0.33350581]
[1757230072063,0.30789709,110680.0,110670.0,0.33350581]
[1757230076342,0.30789709,110680.0,110670.0,0.33672581]
[1757230082101,0.26441125,110680.0,110670.0,0.33672581]
[1757230082738,0.20785042,110680.0,110670.0,0.33672581]
[1757230084282,0.20785042,110680.0,110670.0,0.33876581]
[1757230091371,0.18070112,110680.0,110670.0,0.33876581]
[1757230093698,0.26070112,110680.0,110670.0,0.33876581]
[1757230094685,0.26070112,110680.0,110670.0,0.33672581]
[1757230096362,0.26070112,110680.0,110670.0,0.19158982]
[1757230096811,0.28785198,110680.0,110670.0,0.19158982]
[1757230099105,0.28785198,110680.0,110670.0,0.19472982]
[1757230100578,0.28785198,110680.0,110670.0,0.15378]
[1757230112318,0.28785198,110680.0,110670.0,0.19382389]
[1757230122410,0.28785198,110680.0,110670.0,0.19579389]
[1757230122975,0.28785198,110680.0,110670.0,0.37651133]
[1757230123175,0.28785198,110680.0,110670.0,0.19579389]
[1757230145988,0.26070112,110680.0,110670.0,0.19579389]
[1757230152247,0.28785198,110680.0,110670.0,0.19579389]
[1757230153082,0.28785198,110680.0,110670.0,0.37651133]
[1757230153979,0.28785198,110680.0,110670.0,0.19579389]
[1757230165061,0.28785198,110680.0,110670.0,0.37651133]
[1757230167586,0.28785198,110680.0,110670.0,0.19579389]
[1757230169391,0.28785198,110680.0,110670.0,0.37651133]
[1757230171262,0.07812787,110680.0,110670.0,0.37651133]
[1757230171488,0.25882899,110680.0,110670.0,0.37651133]
[1757230172082,0.20785198,110680.0,110670.0,0.37651133]
[1757230175704,0.59131185,110720.0,110670.0,0.37651133]
[1757230175705,0.02,110730.0,110700.0,0.18066847]
[1757230175934,0.0202,110750.0,110740.0,0.59154203]
[1757230176166,0.00257502,110750.0,110740.0,1.81953623]
[1757230176390,1e-08,110770.0,110760.0,0.5705706]
[1757230176620,1e-08,110770.0,110760.0,2.6260499]
[1757230176850,0.0102,110780.0,110770.0,0.5705543]
[1757230177066,0.0102,110780.0,110770.0,1.92418315]
[1757230177284,1e-08,110780.0,110770.0,1.9241466]
[1757230177508,1e-08,110780.0,110770.0,1.98453217]
[1757230177761,0.0102,110800.0,110790.0,1.18392257]
[1757230177974,0.01024671,110800.0,110790.0,0.96582695]
[1757230179063,0.01024671,110800.0,110790.0,1.46178695]
[1757230179271,0.01024671,110800.0,110790.0,1.46578695]
[1757230179480,0.01024671,110800.0,110790.0,1.49289948]
[1757230180805,0.00121288,110800.0,110790.0,1.49289948]
[1757230181220,0.19396,110810.0,110800.0,0.83704481]
[1757230181426,0.19396,110810.0,110800.0,0.93674948]
[1757230182711,0.19396,110810.0,110800.0,0.61894919]
[1757230183194,0.19396,110810.0,110800.0,0.62194919]
[1757230183719,0.19396,110810.0,110800.0,0.93974948]
[1757230183924,0.19396,110810.0,110800.0,0.3041489]
[1757230184132,0.19396,110810.0,110800.0,0.62194919]
[1757230184364,0.19396,110810.0,110800.0,0.62186938]
[1757230184585,0.16890174,110830.0,110810.0,0.18048912]
[1757230184803,0.16894838,110830.0,110820.0,0.09191599]
[1757230185009,0.16894838,110830.0,110820.0,0.09962486]
[1757230185010,0.17102838,110830.0,110820.0,0.09962486]
[1757230185439,0.17102838,110830.0,110820.0,0.14103043]
[1757230185651,0.17102838,110830.0,110820.0,0.32150326]
[1757230185863,0.1800512,110830.0,110820.0,0.32150326]
[1757230186083,0.00212664,110830.0,110820.0,0.32150326]
[1757230186295,4.664e-05,110830.0,110820.0,0.64427355]
[1757230186510,4.664e-05,110830.0,110820.0,0.32747326]
[1757230186646,4.664e-05,110830.0,110820.0,0.35165579]
[1757230187064,4.664e-05,110830.0,110820.0,0.35065579]
[1757230187266,0.00505664,110830.0,110820.0,0.35065579]
[1757230188674,0.00505664,110830.0,110820.0,0.35265579]
[1757230190147,0.00505664,110830.0,110820.0,0.35365579]
[1757230190788,0.18551319,110830.0,110820.0,0.35365579]
[1757230190994,0.18551319,110830.0,110820.0,0.07922697]
[1757230191273,0.30975971,110830.0,110820.0,0.05211444]
[1757230192331,0.64975971,110830.0,110820.0,0.00970887]
[1757230192672,0.64975971,110830.0,110820.0,0.00770887]
[1757230195569,0.7416757,110830.0,110820.0,0.00770887]
[1757230200956,0.73515971,110830.0,110820.0,0.00770887]
[1757230201405,0.39515971,110830.0,110820.0,0.00770887]
[1757230201620,0.18047283,110820.0,110810.0,0.07061212]
[1757230201836,0.18047283,110820.0,110810.0,0.0783484]
[1757230202046,0.18340283,110820.0,110810.0,0.0783484]
[1757230202253,0.18548283,110820.0,110810.0,0.0783484]
[1757230202668,0.2126005,110820.0,110810.0,0.0783484]
[1757230202874,0.3673605,110820.0,110810.0,0.0783484]
[1757230203715,0.3673605,110820.0,110810.0,0.00773628]
[1757230204137,0.3673605,110820.0,110810.0,0.00873628]
[1757230204342,0.35651947,110820.0,110810.0,0.00873628]
[1757230204765,0.02711767,110820.0,110810.0,0.35379351]
[1757230204975,0.02711767,110820.0,110810.0,0.8792538]
[1757230205161,4.664e-05,110830.0,110820.0,0.23047283]
[1757230205409,4.664e-05,110830.0,110820.0,0.36538602]
[1757230205641,4.664e-05,110830.0,110820.0,0.40767219]
[1757230206077,4.664e-05,110830.0,110820.0,0.37535127]
[1757230206479,4.664e-05,110830.0,110820.0,0.4024613]
[1757230207150,4.664e-05,110830.0,110820.0,0.4044613]
[1757230207423,0.18580319,110830.0,110820.0,0.11964816]
[1757230207682,4.664e-05,110830.0,110820.0,0.44918289]
[1757230207921,4.664e-05,110830.0,110820.0,0.44692698]
[1757230209644,4.664e-05,110830.0,110820.0,0.78566609]
[1757230209842,4.664e-05,110830.0,110820.0,0.73768364]
[1757230210041,4.664e-05,110830.0,110820.0,0.80228448]
[1757230210560,4.664e-05,110830.0,110820.0,0.80128448]
[1757230211306,4.664e-05,110830.0,110820.0,0.80428448]
[1757230211754,4.664e-05,110830.0,110820.0,0.77717445]
[1757230212828,4.664e-05,110830.0,110820.0,0.7863715]
[1757230213469,4.664e-05,110830.0,110820.0,0.77717445]
[1757230213689,4.664e-05,110830.0,110820.0,0.45937416]
[1757230213870,4.664e-05,110830.0,110820.0,0.3738345]
[1757230214286,4.664e-05,110830.0,110820.0,0.69163479]
[1757230215129,4.664e-05,110830.0,110820.0,1.0303739]
[1757230215339,4.664e-05,110830.0,110820.0,1.09497474]
[1757230215826,6.64e-06,110830.0,110820.0,1.09497474]
[1757230219504,0.0002,110840.0,110830.0,0.18045655]
[1757230219733,0.0002,110840.0,110830.0,0.86680475]
[1757230219973,0.0002,110840.0,110830.0,0.86875475]
[1757230220208,0.0002,110840.0,110830.0,0.82040165]
[1757230220438,0.0002,110840.0,110830.0,0.86874358]
[1757230220678,0.0002,110840.0,110830.0,0.55094329]
[1757230220932,0.0002,110840.0,110830.0,0.82040165]
[1757230221381,0.0002,110840.0,110830.0,0.87073461]
[1757230221595,0.0002,110840.0,110830.0,0.55293432]
[1757230221807,0.0002,110840.0,110830.0,0.86973461]
[1757230222284,0.0002,110840.0,110830.0,0.87273461]
[1757230222954,0.00124917,110850.0,110840.0,0.23044027]
[1757230223182,0.00124917,110850.0,110840.0,1.00921651]
[1757230223410,0.01,110880.0,110870.0,0.23039144]
[1757230223630,0.01,110880.0,110870.0,0.32230743]
[1757230223631,0.01013996,110880.0,110870.0,0.32230743]
[1757230223853,0.01013996,110880.0,110870.0,0.32425743]
[1757230224292,0.01013996,110880.0,110870.0,0.32719743]
[1757230224512,0.01013996,110880.0,110870.0,0.79915772]
[1757230224727,0.19261514,110880.0,110870.0,0.29802599]
[1757230224956,0.19583514,110880.0,110870.0,0.14191599]
[1757230225411,0.19583514,110880.0,110870.0,0.13302714]
[1757230225642,0.19583514,110880.0,110870.0,0.04111115]
[1757230225876,0.19583514,110880.0,110870.0,0.04211115]
[1757230226117,0.19583514,110880.0,110870.0,0.001]
[1757230226816,0.34991514,110880.0,110870.0,0.001]
[1757230228083,0.33991514,110880.0,110870.0,0.001]
[1757230229104,0.00223996,110880.0,110870.0,0.14486599]
[1757230229365,0.18051514,110880.0,110870.0,0.14712088]
[1757230229707,0.18051514,110880.0,110870.0,0.32525743]
[1757230229913,0.18051514,110880.0,110870.0,0.36594279]
[1757230230597,0.18051514,110880.0,110870.0,0.18555135]
[1757230230993,0.18051514,110880.0,110870.0,0.36594279]
[1757230231205,0.18051514,110880.0,110870.0,0.18555135]
[1757230231398,0.18261514,110880.0,110870.0,0.18555135]
[1757230233000,0.33657514,110880.0,110870.0,0.18555135]
[1757230233229,0.78036514,110880.0,110870.0,0.001]
[1757230235152,0.74899514,110880.0,110870.0,0.001]
[1757230235765,0.78024514,110880.0,110870.0,0.001]
[1757230235966,0.78020514,110880.0,110870.0,0.001]
[1757230241039,0.77996514,110880.0,110870.0,0.001]
[1757230243625,0.77988514,110880.0,110870.0,0.001]
[1757230245101,0.62640514,110880.0,110870.0,0.001]
[1757230245306,0.77988514,110880.0,110870.0,0.001]
[1757230246580,0.77980514,110880.0,110870.0,0.001]
[1757230247364,0.77972514,110880.0,110870.0,0.03318874]
[1757230252210,0.74831514,110880.0,110870.0,0.03318874]
[1757230252434,0.59515514,110880.0,110870.0,0.03318874]
[1757230252668,0.74831514,110880.0,110870.0,0.08147186]
[1757230253516,0.78007514,110880.0,110870.0,0.03318874]
[1757230254295,0.87199113,110880.0,110870.0,0.001]
[1757230255931,0.87199113,110880.0,110870.0,1e-08]
[1757230255932,0.87192366,110880.0,110870.0,1e-08]
[1757230257539,0.87184366,110880.0,110870.0,1e-08]
[1757230258403,0.87180366,110880.0,110870.0,1e-08]
[1757230259862,0.83161847,110880.0,110870.0,1e-08]
[1757230260038,0.89470248,110880.0,110870.0,1e-08]
[1757230260275,0.52040772,110860.0,110850.0,0.07061212]
[1757230260461,0.76532371,110860.0,110850.0,0.07061212]
[1757230260682,0.77037371,110860.0,110850.0,0.07061212]
[1757230261733,0.61762741,110860.0,110850.0,0.07061212]
[1757230261894,0.77066741,110860.0,110850.0,0.07061212]
[1757230262482,0.18042399,110850.0,110840.0,0.04828312]
[1757230262690,0.25268399,110850.0,110840.0,0.04828312]
[1757230262900,0.25504314,110850.0,110840.0,0.04828312]
[1757230263733,0.40804314,110850.0,110840.0,0.04828312]
[1757230264176,0.40804314,110850.0,110840.0,0.04928312]
[1757230264998,0.40804314,110850.0,110840.0,0.04828312]
[1757230265720,0.41725457,110850.0,110840.0,0.04828312]
[1757230265932,0.22517776,110850.0,110840.0,0.001]
[1757230266545,0.40560175,110850.0,110840.0,0.001]
[1757230266974,0.40548175,110850.0,110840.0,0.001]
[1757230268347,0.18044027,110840.0,110830.0,0.33928624]
[1757230268556,0.18044027,110840.0,110830.0,0.34135624]
[1757230268733,0.33324027,110840.0,110830.0,0.34135624]
[1757230269566,0.33324027,110840.0,110830.0,0.34142371]
[1757230269771,0.33324027,110840.0,110830.0,0.27081159]
[1757230270683,0.33324027,110840.0,110830.0,0.27181159]
[1757230271112,0.15272,110840.0,110830.0,0.27181159]
[1757230271328,0.15272,110840.0,110830.0,0.41666758]
[1757230271765,0.33316027,110840.0,110830.0,0.41666758]
[1757230272220,0.33316027,110840.0,110830.0,0.23621152]
[1757230273262,0.33316027,110840.0,110830.0,0.41666807]
[1757230273476,0.33316027,110840.0,110830.0,0.41766807]
[1757230274126,0.33308027,110840.0,110830.0,0.41766807]
[1757230275866,0.33308027,110840.0,110830.0,0.23721152]
[1757230276056,0.33308027,110840.0,110830.0,0.1889284]
[1757230276659,0.18044027,110840.0,110830.0,0.1889284]
[1757230276892,0.33300027,110840.0,110830.0,0.36938495]
[1757230277877,0.33300027,110840.0,110830.0,0.1889284]
[1757230278744,0.33300027,110840.0,110830.0,0.36938495]
[1757230280340,0.33300027,110840.0,110830.0,0.43398579]
[1757230282167,0.33300027,110840.0,110830.0,0.43104579]
[1757230285754,0.33280027,110840.0,110830.0,0.43104579]
[1757230287777,0.15232,110840.0,110830.0,0.43398579]
[1757230288387,0.33276027,110840.0,110830.0,0.43104579]
[1757230288796,0.33276027,110840.0,110830.0,0.43398579]
[1757230289404,0.33272027,110840.0,110830.0,0.43398579]
[1757230293196,0.33272027,110840.0,110830.0,0.43104579]
[1757230296218,0.33785027,110840.0,110830.0,0.43104579]
[1757230297561,0.33272027,110840.0,110830.0,0.43104579]
[1757230304521,0.15228,110840.0,110830.0,0.43104579]
[1757230304747,0.25054175,110850.0,110830.0,0.43104579]
[1757230304962,0.15184,110840.0,110830.0,0.43104579]
[1757230305371,0.33228027,110840.0,110830.0,0.43104579]
[1757230305794,0.33228027,110840.0,110830.0,0.43004579]
[1757230306633,0.33228027,110840.0,110830.0,0.42904579]
[1757230307459,0.33228027,110840.0,110830.0,0.43004579]
[1757230309228,0.33220027,110840.0,110830.0,0.43004579]
[1757230311691,0.33519027,110840.0,110830.0,0.43004579]
[1757230312475,0.22112,110840.0,110830.0,0.43004579]
[1757230313724,0.06936,110840.0,110830.0,0.43004579]
[1757230313932,0.22108,110840.0,110830.0,0.43004579]
[1757230314584,0.221,110840.0,110830.0,0.43298579]
[1757230316279,0.221,110840.0,110830.0,0.36838495]
[1757230316698,0.221,110840.0,110830.0,0.36544495]
[1757230317938,0.22092,110840.0,110830.0,0.36544495]
[1757230318727,0.40136027,110840.0,110830.0,0.36544495]
[1757230319783,0.06936,110840.0,110830.0,0.36544495]
[1757230319997,0.22092,110840.0,110830.0,0.36544495]
[1757230322250,0.40136027,110840.0,110830.0,0.36544495]
[1757230323785,0.40128027,110840.0,110830.0,0.36544495]
[1757230324507,0.22084,110840.0,110830.0,0.36544495]
[1757230328664,0.06936,110840.0,110830.0,0.68522661]
[1757230328868,0.22072,110840.0,110830.0,0.68522661]
[1757230329116,0.22072,110840.0,110830.0,0.71233561]
[1757230329285,0.22072,110840.0,110830.0,0.39549395]
[1757230329470,0.22072,110840.0,110830.0,0.71233561]
[1757230331330,0.22072,110840.0,110830.0,0.39549395]
[1757230331533,0.22072,110840.0,110830.0,0.71133561]
[1757230331742,0.22072,110840.0,110830.0,0.39449395]
[1757230331959,0.22064,110840.0,110830.0,0.71133561]